fUSD/lending_fUSD_20250205
["ID","MTS","AMOUNT","RATE_DAILY","PERIOD"]
[351689039,1738733432237,-2035.53507333,8.8e-05,2]
[351689040,1738733432248,-1094.79336852,8.8e-05,2]
[351689041,1738733432350,-62275.00025,8.8e-05,2]
[351689042,1738733432362,-1431.3123505,8.8e-05,2]
[351689043,1738733432531,-2235.54614608,8.8e-05,2]
[351689044,1738733432542,-355.79999989,8.8e-05,2]
[351689045,1738733432554,-707037.19861036,8.8e-05,2]
[351689046,1738733432565,-42931.79695498,8.8e-05,2]
[351689065,1738733438427,-544.32727247,8.8e-05,2]
[351689066,1738733438439,-274.50242182,8.8e-05,2]
[351689067,1738733438449,-1333.45124508,8.8e-05,2]
[351689083,1738733440174,-1500.47,8.8e-05,2]
[351689084,1738733440185,-2327.93,8.8e-05,2]
[351689086,1738733440295,-1203.23541462,8.8e-05,2]
[351689087,1738733440560,-16302.20538436,8.8e-05,2]
[351689088,1738733440571,-652.01062997,8.8e-05,2]
[351689089,1738733440582,-18843.20002145,8.8e-05,2]
[351689090,1738733440711,-50586.33360333,8.8e-05,2]
[351689091,1738733440727,-252.8204159,8.8e-05,2]
[351689099,1738733443259,-926.4000006,8.8e-05,2]
[351689100,1738733443271,-521.55,8.8e-05,2]
[351689101,1738733443283,-296.21242944,8.8e-05,2]
[351689102,1738733443318,-64098.61968183,8.8e-05,2]
[351689106,1738733443377,-4208.19490955,8.8e-05,2]
[351689108,1738733443388,-4200.04995,8.8e-05,2]
[351689121,1738733446327,-446.50547,8.8e-05,2]
[351689122,1738733446339,-3835.79022712,8.8e-05,2]
[351689123,1738733446461,-6669.35847953,8.8e-05,2]
[351689124,1738733446476,-1008.34431669,8.8e-05,2]
[351689125,1738733446542,-7608.52779035,8.8e-05,2]
[351689126,1738733446554,-838330.33468372,8.8e-05,2]
[351689127,1738733446563,-12890.7842,8.836e-05,2]
[351689128,1738733446573,-4295.3442,8.836e-05,2]
[351689129,1738733446582,-2321.62307568,8.836e-05,2]
[351689130,1738733446594,-339.96772432,8.836e-05,2]
[351689131,1738733446603,-712.0020523,8.836e-05,2]
[351689132,1738733446615,-1856.7354477,8.836e-05,2]
[351689133,1738733446624,-1032.6224,8.836e-05,2]
[351689134,1738733446634,-167.0421523,8.836e-05,2]
[351689137,1738734068678,151.7,6.59e-05,2]
[351689138,1738734068928,151.7,7.688e-05,2]
[351689139,1738734342142,-200.0,8.155e-05,2]
[351689140,1738734342166,-1498.77678046,8.191e-05,2]
[351689141,1738734343703,-33.62321954,8.191e-05,2]
[351689142,1738734343726,-150.0,8.192e-05,2]
[351689143,1738734343750,-170.27,8.195e-05,2]
[351689144,1738734343773,-2555.71,8.204e-05,2]
[351689145,1738734343805,-621.02114883,8.204e-05,2]
[351689146,1738734343829,-300.0,8.218e-05,2]
[351689147,1738734343852,-729.43,8.219e-05,2]
[351689148,1738734343876,-1154.57,8.219e-05,2]
[351689149,1738734343900,-250.0,8.224e-05,2]
[351689150,1738734343924,-3567.4429,8.256e-05,2]
[351689151,1738734343948,-482.97,8.26e-05,2]
[351689152,1738734343973,-565.65,8.264e-05,2]
[351689153,1738734343999,-284.91,8.271e-05,2]
[351689154,1738734344023,-887.15,8.289e-05,2]
[351689155,1738734344047,-1595.43,8.299e-05,2]
[351689156,1738734344072,-1000.0,8.336e-05,2]
[351689157,1738734344099,-588.3,8.345e-05,2]
[351689158,1738734344123,-466.31,8.545e-05,2]
[351689159,1738734344147,-250.0,8.588e-05,2]
[351689160,1738734344174,-2353.94,8.71e-05,2]
[351689161,1738734344205,-300.0,8.718e-05,2]
[351689162,1738734344229,-583.66,8.726e-05,2]
[351689163,1738734344253,-1287.91,8.734e-05,2]
[351689164,1738734344278,-430.25128808,8.735e-05,2]
[351689165,1738734344303,-150.0,8.735e-05,2]
[351689166,1738734344330,-23900.0,8.736e-05,2]
[351689167,1738734344357,-17290.55,8.736e-05,2]
[351689168,1738734344382,-150.99,8.736e-05,2]
[351689169,1738734344408,-150.99,8.736e-05,2]
[351689170,1738734344433,-299.99,8.736e-05,2]
[351689171,1738734344458,-669.97270914,8.736e-05,2]
[351689172,1738734344483,-151.7,8.787e-05,2]
[351689173,1738734344507,-1317.86,8.799e-05,2]
[351689174,1738734344531,-500.0,8.799e-05,2]
[351689175,1738734344559,-1447.36,8.799e-05,2]
[351689190,1738734561146,-1000.0,8.835e-05,2]
[351689191,1738734561170,-300.0,8.835e-05,2]
[351689192,1738734561193,-1616.438644,8.836e-05,2]
[351689193,1738734568268,-1253.399224,8.836e-05,2]
[351689194,1738734569102,-159.5458522,8.836e-05,2]
[351689198,1738734631394,-2137.57266941,8.836e-05,2]
[351689199,1738734631455,-1099.24999755,8.836e-05,2]
[351689200,1738734631467,-6834.64085429,8.836e-05,2]
[351689201,1738734631479,-2614.97457783,8.836e-05,2]
[351689202,1738734631491,-3653.74999986,8.836e-05,2]
[351689203,1738734631503,-3592.79863,8.836e-05,2]
[351689204,1738734631515,-3590.61534836,8.836e-05,2]
[351689205,1738734631526,-254.46,8.836e-05,2]
[351689206,1738734631624,-2093.40501905,8.836e-05,2]
[351689207,1738734631738,-330.62029001,8.836e-05,2]
[351689208,1738734631754,-15061.46859344,8.836e-05,2]
[351689209,1738734631764,-189.60861035,8.845e-05,2]
[351689210,1738734631774,-669.97270913,8.845e-05,2]
[351689211,1738734631784,-2000.0,8.845e-05,2]
[351689212,1738734631794,-150.0,8.85e-05,2]
[351689214,1738734631804,-500.0,8.851e-05,2]
[351689216,1738734631813,-1000.0,8.851e-05,2]
[351689218,1738734631822,-2500.0,8.851e-05,2]
[351689220,1738734631831,-200.0,8.86e-05,2]
[351689222,1738734631840,-500.0,8.931e-05,2]
[351689224,1738734631849,-999.99,8.936e-05,2]
[351689226,1738734631859,-150.99,8.936e-05,2]
[351689228,1738734631868,-988.1949,8.973e-05,2]
[351689230,1738734631877,-5000.0,8.973e-05,2]
[351689232,1738734631888,-299.99,8.973e-05,2]
[351689234,1738734631897,-500.0,8.986e-05,2]
[351689236,1738734631907,-165.77,8.991e-05,2]
[351689238,1738734631918,-175.49,9.013e-05,2]
[351689240,1738734631927,-1500.0,9.196e-05,2]
[351689242,1738734631937,-4493.73,9.21e-05,2]
[351689244,1738734631946,-1673.55,9.222e-05,2]
[351689246,1738734631955,-169.76,9.235e-05,2]
[351689249,1738734631965,-3046.28,9.266e-05,2]
[351689252,1738734631974,-431.43955898,9.268e-05,2]
[351689254,1738734631983,-23900.0,9.307e-05,2]
[351689256,1738734631992,-500.0,9.315e-05,2]
[351689258,1738734632003,-1381.21,9.349e-05,2]
[351689260,1738734632013,-1000.0,9.377e-05,2]
[351689262,1738734632023,-588.3,9.388e-05,2]
[351689264,1738734632034,-2123.95,9.48e-05,2]
[351689266,1738734632044,-500.0,9.616e-05,2]
[351689269,1738734632056,-154.4,9.805e-05,2]
[351689271,1738734632066,-154.4,9.814e-05,2]
[351689273,1738734632076,-154.4,9.822e-05,2]
[351689275,1738734632086,-154.4,9.83e-05,2]
[351689277,1738734632096,-174.03,9.835e-05,2]
[351689279,1738734632105,-154.4,9.838e-05,2]
[351689281,1738734632115,-154.4,9.846e-05,2]
[351689283,1738734632124,-154.4,9.854e-05,2]
[351689285,1738734632134,-151.7,9.885e-05,2]
[351689287,1738734632143,-64098.61968183,0.0001,2]
[351689289,1738734632153,-155.89026973,0.0001,2]
[351689291,1738734632163,-4000.0,0.0001,2]
[351689293,1738734632173,-1548.83,0.00010082,2]
[351689295,1738734632182,-878.75,0.00010082,2]
[351689297,1738734632192,-782.76,0.00010137,2]
[351689299,1738734632201,-203.0,0.000103,3]
[351689301,1738734632211,-1154.57,0.00010382,2]
[351689303,1738734632220,-200.0,0.000104,3]
[351689305,1738734632230,-1000.0,0.00010419,2]
[351689307,1738734632242,-588.3,0.00010431,2]
[351689309,1738734632252,-505.0,0.00010438,2]
[351689311,1738734632261,-500.0,0.000105,3]
[351689313,1738734632270,-1381.21,0.00010517,2]
[351689315,1738734632281,-500.0,0.00010599,2]
[351689317,1738734632290,-500.0,0.00010599,2]
[351689319,1738734632299,-500.0,0.00010599,2]
[351689321,1738734632312,-500.0,0.00010599,2]
[351689323,1738734632322,-500.0,0.00010599,2]
[351689324,1738734632331,-211.34,0.00010599,2]
[351689326,1738734632340,-1262.95,0.00010599,2]
[351689328,1738734632350,-500.0,0.00010599,2]
[351689329,1738734632360,-500.0,0.00010599,2]
[351689331,1738734632369,-500.0,0.00010599,2]
[351689332,1738734632379,-500.0,0.00010599,2]
[351689333,1738734632388,-500.0,0.00010599,2]
[351689334,1738734632398,-500.0,0.00010599,2]
[351689335,1738734632407,-500.0,0.00010599,2]
[351689336,1738734632417,-535.15,0.00010599,2]
[351689337,1738734632427,-500.0,0.00010599,2]
[351689338,1738734632436,-236.64,0.00010599,2]
[351689339,1738734632446,-500.0,0.00010599,2]
[351689340,1738734632455,-618.47,0.00010599,2]
[351689341,1738734632465,-5556.0,0.000106,5]
[351689342,1738734632474,-800.0,0.000106,3]
[351689343,1738734632484,-174.03,0.00010646,2]
[351689344,1738734632493,-150.0,0.00010658,2]
[351689345,1738734632503,-302.72,0.00010685,2]
[351689346,1738734632512,-1100.0,0.000107,3]
[351689347,1738734632522,-1262.95,0.00010736,2]
[351689348,1738734632531,-275.53921987,0.00010736,2]
[351689349,1738734632541,-206.13,0.00010736,2]
[351689350,1738734632551,-169.76,0.00010774,2]
[351689351,1738734632560,-1300.0,0.000108,3]
[351689352,1738734632570,-1262.95,0.00010873,2]
[351689353,1738734632579,-200.0,0.000109,3]
[351689354,1738734632589,-386.13527322,0.0001099,2]
[351689355,1738734632598,-174.49,0.0001099,2]
[351689356,1738734632608,-500.0,0.0001099,2]
[351689357,1738734632618,-500.0,0.0001099,2]
[351689358,1738734632628,-500.0,0.0001099,2]
[351689359,1738734632638,-500.0,0.0001099,2]
[351689360,1738734632647,-500.0,0.0001099,2]
[351689361,1738734632657,-500.0,0.0001099,2]
[351689362,1738734632666,-5835.50304828,0.00011,2]
[351689363,1738734632675,-1262.95,0.0001101,2]
[351689364,1738734632685,-2023.0,0.0001105,2]
[351689365,1738734632694,-1272.0,0.0001105,2]
[351689366,1738734632703,-638.0,0.0001105,2]
[351689367,1738734632712,-152.02,0.0001105,2]
[351689368,1738734632722,-570.748,0.0001105,2]
[351689369,1738734632731,-1949.0,0.0001105,2]
[351689370,1738734632742,-916.364,0.0001105,2]
[351689371,1738734632751,-783.0,0.0001105,2]
[351689372,1738734632760,-1264.0,0.0001105,2]
[351689373,1738734632769,-2970.491,0.0001105,2]
[351689374,1738734632778,-539.0,0.0001105,2]
[351689375,1738734632788,-3911.0,0.0001105,2]
[351689376,1738734632798,-155.924,0.0001105,2]
[351689377,1738734632807,-1007.0,0.0001105,2]
[351689378,1738734632817,-164.23140124,0.00011099,2]
[351689379,1738734632827,-1013.0,0.000111,2]
[351689380,1738734632836,-1262.95,0.00011147,2]
[351689381,1738734632846,-700.0,0.00011164,2]
[351689382,1738734632856,-500.0,0.00011164,2]
[351689383,1738734632865,-150.0,0.00011178,2]
[351689384,1738734632875,-500.0,0.00011214,2]
[351689385,1738734632885,-500.0,0.00011214,2]
[351689386,1738734632894,-500.0,0.00011214,2]
[351689387,1738734632904,-500.0,0.00011214,2]
[351689388,1738734632913,-500.0,0.00011214,2]
[351689389,1738734632922,-455.2566,0.00011214,2]
[351689390,1738734632932,-448.59579115,0.00011222,2]
[351689391,1738734632941,-334.32321872,0.00011227,2]
[351689392,1738734632950,-10750.44266003,0.00011227,2]
[351689393,1738734632960,-448.59579115,0.00011231,2]
[351689394,1738734632970,-69697.0157282,0.00011235,2]
[351689395,1738734632980,-12443.96472307,0.00011235,2]
[351689396,1738734632993,-1151.55012815,0.00011235,2]
[351689397,1738734633004,-256.7011023,0.00011235,2]
[351689398,1738734633015,-11448.16541727,0.00011235,2]
[351689399,1738734633027,-44396.63435741,0.00011235,2]
[351689400,1738734633039,-165.77,0.00011238,2]
[351689401,1738734633049,-69697.0157282,0.00011243,2]
[351689402,1738734633059,-194.064,0.00011247,2]
[351689403,1738734633069,-3800.252,0.00011247,2]
[351689404,1738734633079,-59709.33685238,0.00011256,2]
[351689408,1738734637344,-500.0,0.0001099,2]
[351689409,1738734637523,-1105.0,0.00011256,2]
[351689410,1738734637583,-8882.67887582,0.00011256,2]
[351689411,1738734637593,-145.79038127,0.00011262,2]
[351689419,1738734639479,-242.373,0.0001105,2]
[351689420,1738734639489,-91.21218724,0.0001105,2]
[351689434,1738734642776,-188.75297573,0.0001105,2]
[351689435,1738734642788,-193.30702427,0.0001105,2]
[351689437,1738734642799,-158.78781276,0.0001105,2]
[351689438,1738734642808,-2272.2172248,0.00011262,2]
[351689440,1738734642818,-911.96793817,0.00011264,2]
[351689441,1738734642835,-977.05,0.00011264,2]
[351689442,1738734642846,-8176.5932675,0.00011264,2]
[351689455,1738734645547,-684.83145436,0.00011264,2]
[351689456,1738734645557,-880.41120834,0.0001127,2]
[351689457,1738734645568,-1537.59639773,0.0001127,2]
[351689458,1738734645579,-60105.76101385,0.0001127,2]
[351689459,1738734645589,-266.96927998,0.0001127,2]
[351689460,1738734645599,-10750.44266003,0.0001127,2]
[351689461,1738734645608,-37785.05927852,0.0001127,2]
[351689462,1738734645618,-37785.05927852,0.0001127,2]
[351689463,1738734645627,-200.0,0.0001127,2]
[351689464,1738734645636,-24118.99493304,0.00011272,2]
[351689465,1738734645646,-500.0,0.00011273,2]
[351689466,1738734645656,-500.0,0.00011273,2]
[351689467,1738734645665,-1400.4123521,0.00011274,2]
[351689468,1738734645675,-17163.35223581,0.00011277,3]
[351689469,1738734645684,-433.88321267,0.00011277,2]
[351689470,1738734645693,-266.96927998,0.00011277,2]
[351689471,1738734645702,-433.88321267,0.00011278,2]
[351689472,1738734645712,-135517.15226802,0.00011278,2]
[351689473,1738734645721,-51135.04592293,0.00011279,2]
[351689474,1738734645730,-2418.00760607,0.00011279,2]
[351689475,1738734645740,-37785.05927852,0.0001128,2]
[351689476,1738734645749,-20918.61977123,0.0001128,2]
[351689477,1738734645825,-78739.43064112,0.0001128,2]
[351689478,1738734645836,-28661.926003,0.0001128,2]
[351689479,1738734645848,-7197.17585267,0.0001128,2]
[351689480,1738734645858,-2317.29414733,0.00011282,2]
[351689481,1738734645869,-350.13122922,0.00011282,2]
[351689482,1738734645880,-9927.59438296,0.00011282,2]
[351689483,1738734645890,-205.93536296,0.00011282,2]
[351689484,1738734645899,-1325.88613204,0.00011282,2]
[351689485,1738734645909,-1262.95,0.00011284,2]
[351689486,1738734645919,-10750.44266003,0.00011284,2]
[351689487,1738734645930,-1325.88613204,0.00011285,2]
[351689488,1738734645939,-266.96927998,0.00011286,2]
[351689489,1738734645949,-3347.6915125,0.00011287,2]
[351689497,1738734932363,-1000.0,8.851e-05,2]
[351689498,1738734932385,-2500.0,8.851e-05,2]
[351689499,1738734932407,-5000.0,8.973e-05,2]
[351689500,1738734932430,-21118.6696,8.973e-05,2]
[351689501,1738734932451,-236.95585814,8.973e-05,2]
[351689502,1738734932473,-144.37454186,9.736e-05,2]
[351689503,1738735080891,-1209.64,8.355e-05,2]
[351689504,1738735080920,-1421.0383,8.851e-05,2]
[351689505,1738735080944,-355.62545814,9.736e-05,2]
[351689506,1738735080966,-236.95585813,0.00010034,2]
[351689509,1738735189733,-2582.98,0.00012,18]
[351689518,1738735232675,236.95585813,0.00010059,2]
[351689519,1738735313117,10135.1726,8.973e-05,2]
[351689520,1738735321264,300.0,0.00010136,2]
[351689521,1738735340590,169.33,9.824e-05,2]
[351689523,1738735381314,300.0,0.00010136,2]
[351689524,1738735397984,3218.72,9.831e-05,2]
[351689525,1738735423220,12416.5619256,9.808e-05,2]
[351689526,1738735446089,-11483.4380744,9.808e-05,2]
[351689527,1738735446112,-289.55,0.00010137,2]
[351689528,1738735446133,-378.14,0.00010137,2]
[351689529,1738735446154,-380.71,0.00010137,2]
[351689530,1738735446176,-376.18,0.00010137,2]
[351689531,1738735446197,-369.73,0.00010137,2]
[351689532,1738735446223,-379.44,0.00010137,2]
[351689533,1738735446245,-372.01,0.00010137,2]
[351689534,1738735446267,-371.79,0.00010137,2]
[351689535,1738735446288,-377.12,0.00010137,2]
[351689536,1738735446310,-373.65,0.00010137,2]
[351689537,1738735446331,-375.57,0.00010137,2]
[351689538,1738735446352,-374.34,0.00010137,2]
[351689539,1738735446373,-372.27,0.00010137,2]
[351689540,1738735490820,2455.28,9.828e-05,2]
[351689541,1738735508598,2008.0,0.000101,2]
[351689542,1738735532765,-373.18,0.00010137,2]
[351689543,1738735532789,-380.54,0.00010137,2]
[351689544,1738735532810,-372.4,0.00010137,2]
[351689545,1738735532832,-374.67,0.00010137,2]
[351689546,1738735532855,-370.03,0.00010137,2]
[351689547,1738735532877,-376.68,0.00010137,2]
[351689548,1738735532899,-375.8,0.00010137,2]
[351689549,1738735532922,-379.04,0.00010137,2]
[351689550,1738735532943,-377.15,0.00010138,2]
[351689551,1738735532965,-381.66,0.00010139,2]
[351689552,1738735532987,-376.56,0.0001014,2]
[351689553,1738735533008,-373.29,0.00010142,2]
[351689554,1738735533030,-378.7,0.00010145,2]
[351689555,1738735533052,-300.0,0.00010158,2]
[351689556,1738735533074,-170.27,0.00010159,2]
[351689557,1738735533095,-376.53,0.00010167,2]
[351689558,1738735533117,-368.64,0.00010191,2]
[351689559,1738735533139,-380.27,0.00010232,2]
[351689560,1738735533161,-250.0,0.00010253,2]
[351689561,1738735533184,-370.67,0.00010306,2]
[351689562,1738735533207,-828.72,0.00010366,2]
[351689563,1738735533229,-232.23,0.00010382,2]
[351689564,1738735533251,-150.99,0.00010382,2]
[351689565,1738735533273,-1000.0,0.00010469,2]
[351689566,1738735533295,-200.0,0.00010499,2]
[351689567,1738735533316,-1209.64,0.00010619,2]
[351689568,1738735533337,-299.99,0.00010619,2]
[351689569,1738735533359,-152.9,0.00010637,2]
[351689570,1738735533381,-159.71,0.00010784,2]
[351689571,1738735533402,-878.38,0.000108,2]
[351689572,1738735533423,-150.0,0.000108,2]
[351689573,1738735533443,-150.0,0.00010959,2]
[351689574,1738735546397,1000.0,0.00010389,2]
[351689575,1738735605136,-381.99,0.0001105,2]
[351689576,1738735605157,-381.65,0.0001105,2]
[351689577,1738735605178,-372.98,0.0001105,2]
[351689578,1738735605199,-368.68,0.0001105,2]
[351689579,1738735605221,-379.79,0.0001105,2]
[351689580,1738735605242,-284.644,0.0001105,2]
[351689581,1738735605263,-150.45,0.0001105,2]
[351689582,1738735605285,-568.0,0.00011161,2]
[351689583,1738735605306,-313.83493853,0.00011161,2]
[351689584,1738735614375,175.61,0.0001072,2]
[351689585,1738735665119,-324.16506147,0.00011161,2]
[351689586,1738735665142,-150.0,0.00011161,2]
[351689587,1738735665165,-1826.0,0.00011161,2]
[351689588,1738735665187,-907.0,0.00011161,2]
[351689589,1738735665209,-1264.0,0.00011161,2]
[351689590,1738735665230,-783.0,0.00011161,2]
[351689591,1738735665252,-2953.0,0.00011161,2]
[351689592,1738735665275,-373.61,0.00011161,2]
[351689593,1738735665299,-5370.76984448,0.00011161,2]
[351689594,1738735665320,-373.68,0.00011161,2]
[351689595,1738735665342,-373.96,0.00011161,2]
[351689596,1738735665364,-380.34,0.00011161,2]
[351689597,1738735665386,-600.0,0.00011164,2]
[351689598,1738735665408,-500.0,0.00011164,2]
[351689599,1738735665430,-539.0,0.00011169,2]
[351689600,1738735665459,379.62,0.00011161,2]
[351689601,1738735702318,500.0,8.22e-05,2]
[351689603,1738735704527,500.0,0.0001096,2]
[351689604,1738735723658,600.0,8.22e-05,2]
[351689605,1738735725241,600.0,9.59e-05,2]
[351689606,1738735726830,600.0,0.0001096,2]
[351689607,1738735801330,300.0,0.00011168,2]
[351689608,1738735831736,-381.24,0.00011169,2]
[351689609,1738735831747,-381.4,0.00011169,2]
[351689610,1738735831757,-368.7,0.00011169,2]
[351689611,1738735831766,-374.54,0.00011169,2]
[351689612,1738735831776,-375.06,0.00011169,2]
[351689613,1738735831786,-372.57,0.00011169,2]
[351689614,1738735831797,-371.76,0.00011169,2]
[351689615,1738735831807,-368.6,0.00011169,2]
[351689616,1738735831816,-381.46,0.00011169,2]
[351689617,1738735831826,-368.51,0.00011169,2]
[351689618,1738735831835,-372.91,0.00011169,2]
[351689619,1738735831845,-374.06,0.00011169,2]
[351689620,1738735831855,-4000.0,0.0001117,2]
[351689621,1738735831865,-722.424,0.00011272,2]
[351689622,1738735831874,-3908.0,0.00011272,2]
[351689623,1738735831883,-150.0,0.00011272,2]
[351689624,1738735831893,-500.88379332,0.00011273,2]
[351689625,1738735831902,-500.0,0.00011273,2]
[351689626,1738735831911,-1612.6272668,0.00011277,2]
[351689627,1738735831920,-7677.43227227,0.00011287,2]
[351689628,1738735831929,-200.0,0.00011288,2]
[351689629,1738735831938,-448.59579115,0.00011288,2]
[351689630,1738735831948,-16933.93371636,0.00011289,2]
[351689631,1738735831958,-183.561,0.00011289,2]
[351689632,1738735831967,-3040.202,0.00011289,2]
[351689633,1738735831977,-2280.56243239,0.0001129,2]
[351689634,1738735831988,-685.05424735,0.0001129,2]
[351689635,1738735832000,-498.92723845,0.0001129,2]
[351689636,1738735832011,-13469.38979817,0.0001129,2]
[351689637,1738735832022,-1549.73576057,0.0001129,2]
[351689657,1738735832529,-868.2718455,0.0001129,2]
[351689658,1738735832539,-205.93536296,0.00011291,2]
[351689659,1738735832550,-16866.848755,0.00011293,2]
[351689660,1738735832562,-22935.99296211,0.00011293,2]
[351689661,1738735832574,-9625.29418829,0.00011293,2]
[351689662,1738735832590,-818.16893096,0.00011293,2]
[351689667,1738735837627,-888.74108657,0.00011293,2]
[351689668,1738735837637,-1054.72789661,0.00011293,2]
[351689669,1738735837648,-11012.81456156,0.00011293,2]
[351689670,1738735837659,-4365.31421469,0.00011293,2]
[351689671,1738735837669,-321.8339962,0.00011293,2]
[351689672,1738735837839,-10115.68895792,0.00011293,2]
[351689673,1738735837851,-741.73652751,0.00011293,2]
[351689674,1738735837862,-7095.87462594,0.00011293,2]
[351689698,1738735839744,-808.9492575,0.00011293,2]
[351689699,1738735839920,-4115.48653958,0.00011293,2]
[351689700,1738735839931,-1469.75063199,0.00011293,2]
[351689701,1738735839942,-717.15151725,0.00011293,2]
[351689702,1738735839955,-498.3099074,0.00011293,2]
[351689703,1738735839966,-690.415,0.00011293,2]
[351689704,1738735839978,-590.02571942,0.00011293,2]
[351689705,1738735839990,-7536.96656936,0.00011293,2]
[351689706,1738735840000,-23045.962684,0.00011294,4]
[351689707,1738735840011,-2582.65809191,0.00011294,2]
[351689708,1738735840021,-500.0,0.00011295,2]
[351689709,1738735840030,-171.19484182,0.00011295,2]
[351689710,1738735840040,-500.0,0.00011295,2]
[351689711,1738735840050,-582.49,0.00011295,2]
[351689713,1738735840060,-500.0,0.00011295,2]
[351689714,1738735840070,-500.0,0.00011295,2]
[351689715,1738735840079,-2023.0,0.00011295,2]
[351689716,1738735840088,-1272.0,0.00011295,2]
[351689717,1738735840099,-150.99,0.00011295,2]
[351689718,1738735840110,-500.0,0.00011295,2]
[351689719,1738735840120,-202.98926241,0.00011295,2]
[351689720,1738735840131,-33547.97065579,0.00011296,2]
[351689721,1738735840143,-1000.0,0.00011296,2]
[351689757,1738735842722,-500.0,0.00011295,2]
[351689758,1738735842731,-1991.68485548,0.00011296,2]
[351689759,1738735842743,-1113.3000176,0.00011296,2]
[351689760,1738735842754,-4743.9744104,0.00011296,2]
[351689761,1738735842765,-681.83583395,0.00011296,2]
[351689762,1738735842777,-21182.53996619,0.00011296,2]
[351689763,1738735842788,-381.52,0.00011296,2]
[351689764,1738735842910,-355.77988203,0.00011296,2]
[351689765,1738735842923,-9082.27302002,0.00011296,2]
[351689766,1738735842934,-12693.4031788,0.00011296,2]
[351689767,1738735842946,-445.62002,0.00011296,2]
[351689791,1738735845659,-500.0,0.00011295,2]
[351689793,1738735845669,-500.0,0.00011295,2]
[351689795,1738735845679,-1347.65548598,0.00011296,2]
[351689797,1738735845691,-17017.27133631,0.00011296,2]
[351689799,1738735845701,-95699.6,0.00011296,2]
[351689801,1738735845713,-138383.46258942,0.00011296,2]
[351689803,1738735845722,-379.23,0.00011296,2]
[351689805,1738735845731,-448.59579115,0.00011296,2]
[351689807,1738735845740,-502.35775781,0.00011296,2]
[351689808,1738735845749,-500.0,0.00011296,2]
[351689810,1738735845759,-399.48097387,0.00011296,2]
[351689812,1738735845768,-500.0,0.00011296,2]
[351689814,1738735845778,-500.0,0.00011296,2]
[351689816,1738735845787,-500.0,0.00011296,2]
[351689818,1738735845798,-500.0,0.00011296,2]
[351689820,1738735845807,-500.0,0.00011296,2]
[351689822,1738735845816,-643.55000283,0.00011296,2]
[351689824,1738735845826,-503.97253166,0.00011296,2]
[351689826,1738735845835,-221.42053205,0.00011296,2]
[351689828,1738735845845,-500.0,0.00011296,2]
[351689830,1738735845855,-375.8792938,0.00011296,2]
[351689832,1738735845864,-500.0,0.00011296,2]
[351689834,1738735845873,-500.0,0.00011296,2]
[351689836,1738735845883,-420.41,0.00011296,2]
[351689837,1738735845893,-947.21,0.00011296,2]
[351689838,1738735845904,-500.0,0.00011296,2]
[351689839,1738735845913,-500.0,0.00011296,2]
[351689840,1738735845922,-500.0,0.00011296,2]
[351689841,1738735845932,-500.0,0.00011296,2]
[351689842,1738735845941,-500.0,0.00011296,2]
[351689843,1738735845951,-500.0,0.00011296,2]
[351689844,1738735845960,-999.0,0.00011296,2]
[351689845,1738735845970,-999.0,0.00011296,2]
[351689846,1738735845980,-999.0,0.00011296,2]
[351689847,1738735845989,-999.0,0.00011296,2]
[351689848,1738735846000,-500.0,0.00011296,2]
[351689849,1738735846009,-999.0,0.00011296,2]
[351689850,1738735846019,-999.0,0.00011296,2]
[351689851,1738735846028,-999.0,0.00011296,2]
[351689852,1738735846038,-999.0,0.00011296,2]
[351689853,1738735846048,-999.0,0.00011296,2]
[351689855,1738735846057,-999.0,0.00011296,2]
[351689857,1738735846067,-999.0,0.00011296,2]
[351689858,1738735846076,-999.0,0.00011296,2]
[351689860,1738735846087,-999.0,0.00011296,2]